Cogmind - Beta 16 @@@ ROGUE MODE // 2025.11.05 @ 11:52:19 Player: omewwes Result: Destroyed by G-50 Soldier with Heavy Laser Performance ------------- Evolutions (4) 2000 Regions Visited (5) 1000 Robots Destroyed (40) 200 Value Destroyed (933) 933 Prototype IDs (6) 120 Alien Tech Used (0) 0 Bonus (800) 800 TOTAL SCORE: 5053 Bonus ------- Registered with UFD 300 Met Optimus in HQ 500 Cogmind --------- Core Integrity 0/850 Matter 144/300 Energy 98/100 System Corruption 0% Temperature Cool (9) Movement Core (50) Location -6/Factory Parts ------- > --- POWER (1) -------- (None) > --- PROPULSION (4) --- (None) > --- UTILITY (8) ------ Deep Structural Scanner Surveybot 17 Chip > --- WEAPON (2) ------- (None) > --- INVENTORY (5) ---- Mapping Drone Bay (3/3) Subdweller Laser Battle Cannon Grenade Launcher DRS Beacon (Ready) Peak State ------------ > --- POWER ------------ Nuclear Core > --- PROPULSION ------- Spiked Treads Improved Medium Treads > --- UTILITY ---------- Scrap Suit Medium Storage Unit Deep Structural Scanner Hacking Suite > --- WEAPON ----------- Subdweller Beam Cannon Battle Cannon > --- INVENTORY -------- Surveybot 17 Chip Mapping Drone Bay Subdweller Laser Battle Cannon Grenade Launcher DRS Beacon [Rating: 32] Favorites ----------- Power Nuclear Core Engine Subdweller Power Source Power Core Nuclear Core Propulsion Spiked Treads Treads Spiked Treads Leg Aluminum Leg Wheel Subdweller Monowheel Hover Unit Hover Unit Utility Light Armor Plating Device Subdweller Optics Storage Medium Storage Unit Processor Targeting Computer Hackware Hacking Suite Protection Light Armor Plating Weapon Battle Cannon Energy Gun Subdweller Laser Energy Cannon Subdweller Beam Cannon Ballistic Gun Assault Rifle Ballistic Cannon Battle Cannon Launcher Grenade Launcher Build | -11 -10 -10 -8 -8 -6 ------- Run | Yrd Mat Sub Rec Scr Fac Slots Evolved 8 | . . . . . 8 Power . | . . . . . . Propulsion 2 | . . . . . 2 Utility 6 | . . . . . 6 Weapon . | . . . . . . Parts Attached 51 | 5 11 22 5 3 5 Power 6 | 1 . 4 1 . . Engine 5 | 1 . 4 . . . Core 1 | . . . 1 . . Reactor . | . . . . . . Propulsion 10 | 2 2 3 1 1 1 Treads 3 | . . 1 1 1 . Leg 4 | 2 2 . . . . Wheel 2 | . . 2 . . . Hover 1 | . . . . . 1 Flight . | . . . . . . Utility 19 | . 4 7 3 2 3 Device 6 | . . 3 1 1 1 Storage 1 | . . . . 1 . Processor 2 | . . . 1 . 1 Hackware 2 | . . . 1 . 1 Protection 8 | . 4 4 . . . Artifact . | . . . . . . Weapon 16 | 2 5 8 . . 1 Energy Gun 4 | . . 3 . . 1 Energy Cannon 1 | . . 1 . . . Ballistic Gun 4 | 2 1 1 . . . Ballistic Cannon 5 | . 3 2 . . . Launcher 2 | . 1 1 . . . Special Weapon . | . . . . . . Impact Weapon . | . . . . . . Slashing Weapon . | . . . . . . Piercing Weapon . | . . . . . . Special Melee Weapon . | . . . . . . Unidentified Prototypes . | . . . . . . Parts Lost 15 | . . 8 . . 7 Power 3 | . . 2 . . 1 Propulsion 4 | . . 1 . . 3 Utility 5 | . . 3 . . 2 Weapon 3 | . . 2 . . 1 Highest Loss Streak 5 | . . 4 . . 5 To Critical Strikes . | . . . . . . Average Backups 4 | . 4 4 4 5 4 Power . | . . . . . . Propulsion . | . . . . . . Utility 1 | . 3 . 1 2 1 Weapon 2 | . 1 3 3 2 3 Tool/Special . | . . . . . . Unused Backups 7 | . 1 3 1 1 1 Power . | . . . . . . Propulsion . | . . . . . . Utility 2 | . 1 . . . 1 Weapon 3 | . . 2 1 . . Tool/Special 2 | . . 1 . 1 . Average Slot Usage (%) 88 | . 98 82 99 94 38 Engine 7 | . 14 10 8 . . Core 4 | . . . 5 13 2 Treads 16 | . . 10 27 26 5 Leg 7 | . 28 8 . . . Wheel 1 | . . 4 . . . Device 4 | . . 9 2 . 8 Storage 2 | . . . . 7 3 Processor 3 | . . . 12 5 3 Hackware 5 | . . . 11 12 4 Protection 7 | . 26 10 . . . Energy Gun 6 | . . 14 . . . Energy Cannon 6 | . . . 14 13 3 Ballistic Gun 2 | . 9 2 . . . Ballistic Cannon 11 | . 18 8 14 13 2 Peak Build Rating 32 | 5 7 14 15 21 32 Average Rating 12 | 3 6 10 14 17 22 On Entrance 9 | . 5 7 12 15 18 Avg Prop Armor Cover (%) 9 | . . 9 . . . Naked Turns . | . . . . . . Heaviest Build 33 | 9 17 29 20 28 33 Greatest Support 50 | 20 20 20 40 50 50 Greatest Overweight (x) 3 | . . 1 . 3 1 Average Overweight (x) . | . . . . . . Largest Inventory Capacity 10 | 5 5 5 5 10 10 Average Capacity 5 | 5 5 5 5 7 7 Most Carried 10 | . 5 5 5 10 10 Average Carried 4 | . 4 4 4 6 5 Final Capacity 10 | 5 5 5 5 10 5 Final Carried 10 | . 5 4 5 10 5 Scrap Suit Usage (%) 1 | . . . . . 46 Class Distribution -------------------- 92% | Mutant 7% | Scavenger-Mutant Dominant Class ---------------- Mutant | -10/Materials Mutant | -10/Subcaves Mutant | -8/Recycling Mutant | -8/Scraptown Mutant | -6/Factory Resources | -11 -10 -10 -8 -8 -6 ----------- Run | Yrd Mat Sub Rec Scr Fac Matter Collected 1584 | 177 415 674 285 30 3 Remotely . | . . . . . . Salvage Created 1299 | . 350 574 303 . 72 Parts 98 | . 33 48 17 . . Haulers Intercepted 2 | . 2 . . . . Recyclers Shooed . | . . . . . . Parts Field Recycled . | . . . . . . Retrieved Matter . | . . . . . . Parts Self-Destructed 12 | . . 12 . . . Prevented . | . . . . . . Parts Restored . | . . . . . . Kills | -11 -10 -10 -8 -8 -6 ------- Run | Yrd Mat Sub Rec Scr Fac Combat Hostiles Destroyed 30 | . 12 14 3 . 1 Guns 19 | . 9 9 . . 1 Cannons 8 | . . 5 3 . . AOE 3 | . 3 . . . . Classes Destroyed 10 | . 5 2 2 . 1 Worker 2 | . 2 . . . . Builder 1 | . 1 . . . . Hauler 2 | . 2 . . . . Recycler 2 | . . . 2 . . Operator 1 | . . . . . 1 Turret 2 | . . 2 . . . Swarmer 13 | . 9 4 . . . Grunt 4 | . 3 . . . 1 Sentry 3 | . . . 3 . . Subdweller 10 | . . 10 . . . Best Kill Streak 4 | . 4 4 4 . 1 Combat Bots Only 4 | . 3 4 1 . 1 Max Kills in Single Turn 4 | . 4 2 1 . 1 Gunslinging . | . . . . . . Exploded 3 | . 3 . . . . Melee . | . . . . . . Uniques/NPCs Destroyed . | . . . . . . Combat | -11 -10 -10 -8 -8 -6 -------- Run | Yrd Mat Sub Rec Scr Fac Hostile Shots Fired 357 | . 45 155 2 . 155 Missed 102 | . 7 51 . . 44 Hits 255 | . 38 104 2 . 111 Projectile 255 | . 38 104 2 . 111 AOE 4 | . . 4 . . . Critical Strikes 8 | . . 2 . . 6 Damage Taken 3839 | . 331 1614 27 . 1867 Core 1092 | . 66 163 13 . 850 Absorbed by Shields . | . . . . . . Core Remaining (%) 51 | 100 . . . 3 . Volleys Fired 192 | . 32 133 7 . 20 Largest 2 | . 2 2 2 . 2 Hottest 120 | . 60 120 113 . 113 Shots Fired 290 | . 63 186 14 . 27 Gun 137 | . 42 89 . . 6 Cannon 143 | . 20 88 14 . 21 Launcher 10 | . 1 9 . . . Special . | . . . . . . Kinetic 190 | . 62 107 7 . 14 Thermal 96 | . . 76 7 . 13 Explosive 4 | . 1 3 . . . Electromagnetic . | . . . . . . Robot Hit Streak 17 | . 10 17 9 . 11 Robot Miss Streak 3 | . 3 3 1 . 1 Penetration Max . | . . . . . . Secondary Targets 1 | . 1 . . . . Max Gunslinging Chain 1 | . 1 . . . . Shots Hit Robots 158 | . 35 93 9 . 21 Core Hits 68 | . 19 34 5 . 10 Critical Kills . | . . . . . . Critical Parts Destroyed . | . . . . . . Critical Strikes 3 | . . . . . 3 Burn 2 | . . . . . 2 Blast 1 | . . . . . 1 Melee Attacks . | . . . . . . Impact . | . . . . . . Slashing . | . . . . . . Piercing . | . . . . . . Sneak Attacks . | . . . . . . Combat Hostiles . | . . . . . . Follow-up Attacks . | . . . . . . Damage Inflicted 3160 | . 653 1761 256 . 490 Guns 1506 | . 348 1068 . . 90 Cannons 1407 | . 168 588 256 . 395 Explosions 235 | . 130 105 . . . Melee . | . . . . . . Ramming 12 | . 7 . . . 5 Kinetic 2141 | . 516 1282 87 . 256 Thermal 877 | . . 479 169 . 229 Explosive 130 | . 130 . . . . Electromagnetic . | . . . . . . Impact . | . . . . . . Slashing . | . . . . . . Piercing . | . . . . . . Highest Corruption . | . . . . . . Average Corruption . | . . . . . . Corruption Purged . | . . . . . . Corruption Blocked . | . . . . . . Overload Shots . | . . . . . . Overflow Damage 28 | . . 15 4 . 9 Projectiles 28 | . . 15 4 . 9 Explosions . | . . . . . . Melee . | . . . . . . Knockbacks 15 | . . 8 1 . 6 Impact . | . . . . . . Kinetic 14 | . . 8 1 . 5 Secondary 1 | . . . . . 1 Self-Inflicted Damage 24 | . . 22 . . 2 Shots 1 | . . 1 . . . Rammed 2 | . . . . . 2 Targets Rammed 4 | . 2 . . . 2 Kicked 2 | . 2 . . . . Crushed . | . . . . . . Highest Temperature 245 | . 72 245 123 . 153 Average Temperature 38 | . 19 30 50 . 63 Received Heat Transfer 1463 | . 36 538 9 . 880 Siege Activations . | . . . . . . Martial Activations . | . . . . . . Shielding Activations . | . . . . . . Robots Disrupted . | . . . . . . Combat Hostiles . | . . . . . . Robots Corrupted . | . . . . . . Combat Hostiles . | . . . . . . Parts Fried . | . . . . . . Impact Corruptions . | . . . . . . Robots Melted . | . . . . . . Combat Hostiles . | . . . . . . Parts Melted 8 | . . 1 . . 7 Heat Transferred 1432 | . . 575 222 . 635 Parts Sabotaged . | . . . . . . Parts Stolen . | . . . . . . Parts Stripped . | . . . . . . Power Chain Reactions . | . . . . . . Alert | -11 -10 -10 -8 -8 -6 ------- Run | Yrd Mat Sub Rec Scr Fac Maximum Alert Level 1 | . . . 1 . . Low Security (%) 99 | 100 100 . 98 . 100 Level 1 . | . . . 1 . . Level 2 . | . . . . . . Level 3 . | . . . . . . Level 4 . | . . . . . . Level 5 . | . . . . . . High Security . | . . . . . . Max Security . | . . . . . . Peak Influence 207 | . 121 . 207 . 165 Initial 186 | . . . 186 . . Average 41 | . 38 . 51 . 28 Influence Increases 1121 | . 348 465 72 . 236 Destroy 0b10 Robot/C 440 | . 240 120 60 . 20 Destroy 0b10 Robot/NC 40 | . 25 . 10 . 5 Destroy Leader 64 | . 54 . . . 10 Successful Hack 10 | . 4 . . . 6 Destroy Structure 12 | . 10 . 2 . . Partial Spotted 15 | . . . . . 15 Lose Combat Pursuer 540 | . 15 345 . . 180 Influence Decreases 956 | . 348 77 460 . 71 Entered New Map 202 | . . . 202 . . Time Decay 724 | . 348 67 258 . 51 Lost Part 30 | . . 10 . . 20 Squads Dispatched 3 | . 3 . . . . Investigation 1 | . 1 . . . . Extermination . | . . . . . . Reinforcement 2 | . 2 . . . . Assault . | . . . . . . Garrison . | . . . . . . Intercept . | . . . . . . Searches Triggered . | . . . . . . Construction Impeded . | . . . . . . Haulers Reinforced . | . . . . . . Active Scanning Responses . | . . . . . . Cargo Convoy Interrupts . | . . . . . . Stealth | -11 -10 -10 -8 -8 -6 --------- Run | Yrd Mat Sub Rec Scr Fac Distress Signals 4 | . 2 . 1 . 1 Communications Jammed . | . . . . . . Distress Signals . | . . . . . . Times Spotted 63 | . 22 20 2 . 19 Peak Tracking Total 11 | . 5 6 1 . 11 Tactical Retreats 10 | . 1 7 . . 2 Traps | -11 -10 -10 -8 -8 -6 ------- Run | Yrd Mat Sub Rec Scr Fac Traps Triggered 3 | . 2 1 . . . Indirectly . | . . . . . . Trap Hack Attempts . | . . . . . . Triggered . | . . . . . . Disarmed . | . . . . . . Reprogrammed . | . . . . . . Reused . | . . . . . . Traps Extracted . | . . . . . . Installed . | . . . . . . Triggered . | . . . . . . Machines | -11 -10 -10 -8 -8 -6 ---------- Run | Yrd Mat Sub Rec Scr Fac Machines Disabled 4 | . . 4 . . . Max in Single Turn 4 | . . 4 . . . Machines Repaired . | . . . . . . Machines Dismantled . | . . . . . . Machines Sabotaged . | . . . . . . Overloaded Fab Kills . | . . . . . . Hacking | -11 -10 -10 -8 -8 -6 --------- Run | Yrd Mat Sub Rec Scr Fac Machines Accessed 22 | . 2 1 6 11 2 Terminals 7 | . 1 . 4 . 2 Fabricators . | . . . . . . Repair Stations . | . . . . . . Recycling Units 1 | . 1 . . . . Scanalyzers . | . . . . . . Garrison Access . | . . . . . . Total Hacks 108 | . 7 5 16 75 5 Successful 96 | . 4 5 11 75 1 Failed 12 | . 3 . 5 . 4 Catastrophic . | . . . . . . Database Lockouts . | . . . . . . Manual 9 | . 2 . 4 . 3 Terminals 18 | . 6 . 7 . 5 Fabricators . | . . . . . . Repair Stations . | . . . . . . Recycling Units 1 | . 1 . . . . Scanalyzers . | . . . . . . Garrison Access . | . . . . . . Terminal Hacks 93 | . 3 5 10 75 . Record 84 | . . 5 9 70 . Robot Analysis 5 | . 1 . . 4 . Recall Investigation 1 | . 1 . . . . Hauler Manifests 1 | . 1 . . . . Zone Layout 1 | . . . 1 . . Proto ID Catalog 1 | . . . . 1 . Fabricator Hacks . | . . . . . . Repair Station Hacks . | . . . . . . Recycling Unit Hacks 1 | . 1 . . . . Retrieve Matter 1 | . 1 . . . . Scanalyzer . | . . . . . . Garrison Access Hacks . | . . . . . . Unauthorized Hacks 2 | . . . 1 . 1 Terminals 2 | . . . 1 . 1 Track 1 | . . . 1 . . Disrupt 1 | . . . . . 1 Fabricators . | . . . . . . Repair Stations . | . . . . . . Recycling Units . | . . . . . . Scanalyzers . | . . . . . . Garrison Access . | . . . . . . Data Cores Recovered 1 | . . . . . 1 Used 1 | . . . . . 1 Hacking Detections 7 | . 1 . 4 . 2 Full Trace Events . | . . . . . . Feedback Events . | . . . . . . Feedback Blocked . | . . . . . . Robot Schematics Acquired . | . . . . . . Robots Built . | . . . . . . Authchips . | . . . . . . Time . | . . . . . . Total Robot Build Rating . | . . . . . . Part Schematics Acquired . | . . . . . . Parts Built . | . . . . . . Authchips . | . . . . . . Time . | . . . . . . Total Part Build Rating . | . . . . . . Part Studies Acquired . | . . . . . . Parts Repaired . | . . . . . . Time . | . . . . . . Parts Recycled . | . . . . . . Recycled Matter . | . . . . . . Retrieved Matter . | . . . . . . Retrieved Components . | . . . . . . Parts Scanalyzed . | . . . . . . Part Schematics Acquired . | . . . . . . Parts Damaged . | . . . . . . Bothacking | -11 -10 -10 -8 -8 -6 ------------ Run | Yrd Mat Sub Rec Scr Fac Used RIF Installer . | . . . . . . Robots Hacked . | . . . . . . Non-combat . | . . . . . . Combat . | . . . . . . Robot Hacks Applied . | . . . . . . Relay Couplers Released . | . . . . . . Fabnet Peak Effective % . | . . . . . . Robots Rewired . | . . . . . . Allies Hacked . | . . . . . . Hacks Repelled . | . . . . . . Allies | -11 -10 -10 -8 -8 -6 -------- Run | Yrd Mat Sub Rec Scr Fac Total Allies . | . . . . . . Largest Group . | . . . . . . Highest-Rated Group . | . . . . . . Highest-Rated Ally . | . . . . . . Total Orders . | . . . . . . Ally Attacks . | . . . . . . Total Damage . | . . . . . . Kills . | . . . . . . Allies Corrupted . | . . . . . . Allies Melted . | . . . . . . Intel | -11 -10 -10 -8 -8 -6 ------- Run | Yrd Mat Sub Rec Scr Fac Active Infowar (turns) 2406 | . . 2148 132 15 111 Optics 2280 | . . 2148 132 . . Structural 126 | . . . . 15 111 Robot Analysis Total 5 | . 1 . . 4 . Derelict Logs Recovered 1 | . . 1 . . . Drone Launches . | . . . . . . Drone Recoveries . | . . . . . . Exploration | -11 -10 -10 -8 -8 -6 ------------- Run | Yrd Mat Sub Rec Scr Fac Turns Passed 8414 | 56 1083 3450 965 2621 239 Spaces Moved 5345 | 45 752 2059 576 1725 188 Core 283 | 7 . 4 . 171 101 Treads 3335 | . . 1169 576 1554 36 Legs 1374 | 38 752 584 . . . Wheels 302 | . . 302 . . . Hover 51 | . . . . . 51 Flight . | . . . . . . Fastest Speed 50 | 50 120 50 160 50 50 Average Speed 142 | 109 120 146 160 149 74 Slowest Speed 260 | 120 120 260 160 200 260 Overloaded Moves . | . . . . . . Propulsion Burnouts . | . . . . . . Robots Hopped . | . . . . . . Potential Cave-ins . | . . . . . . Cave-ins Triggered . | . . . . . . Exploration Rate (%) 63 | 5 96 86 97 88 6 Regions Visited 5 Branch Regions 3 Pre-discovered Areas 3 | . . . . 3 . Known Exits Taken . | . . . . . . Unknown Exits Taken 5 | 1 1 1 1 1 . Scrap Searched 12 | . . 11 . 1 . Spaces Dug 9 | . . 9 . . . Terrain Destroyed 81 | . 6 73 2 . . Melee . | . . . . . . Projectile 12 | . . 10 2 . . AOE 69 | . 6 63 . . . Terrain Rammed . | . . . . . . Walls Destroyed . | . . . . . . Machines Disabled . | . . . . . . Actions | -11 -10 -10 -8 -8 -6 --------- Run | Yrd Mat Sub Rec Scr Fac Total 5864 | 49 869 2317 606 1764 259 Wait 154 | . 54 49 11 . 40 Move 5340 | 44 751 2058 575 1724 188 Hop . | . . . . . . Pick Up 37 | . 6 14 2 15 . Fast Attach 36 | 5 7 11 4 7 2 Attach 11 | . . 5 . 2 4 Detach 11 | . . 5 2 3 1 Swap 25 | . 7 17 1 . . Drop 52 | . 10 23 4 13 2 Fire 192 | . 32 133 7 . 20 Melee . | . . . . . . Ram 2 | . . . . . 2 Kick 2 | . 2 . . . . Crush . | . . . . . . Escape Stasis . | . . . . . . Rewire . | . . . . . . Trap . | . . . . . . Miscellaneous 2 | . . 2 . . . Route ------- -11/Scrapyard -10/Materials (discovered 5 exits: [*Mat x3] / [*Min] / *Sub) -10/Subcaves (discovered 2 exits: [*Mat] / *Rec) -8/Recycling (discovered 2 exits: *Fac / *Scr) -8/Scraptown (discovered 2 exits: *Fac x2) -6/Factory (discovered 2 exits: Fac x2) History --------- Turn | Location | Event 5 | -11/Scrapyard | Discovered new exit (range 15) 57 | -11/Scrapyard | Entered Materials 240 | -10/Materials | Discovered new exit (range 12) 317 | -10/Materials | Build established: Mutant 446 | -10/Materials | Discovered new exit (range 16) 740 | -10/Materials | Discovered new exit (range 10) 876 | -10/Materials | Discovered new exit (range 14) 1135 | -10/Materials | Discovered new exit (range 5) 1140 | -10/Materials | Entered Subcaves 1141 | -10/Subcaves | Approached by a straggling Scientist 1274 | -10/Subcaves | Visited Clippyterm 1277 | -10/Subcaves | Learned Research machine intel 1277 | -10/Subcaves | Learned Factory garrison access intel 1374 | -10/Subcaves | Lost 4 parts (1p2u1w) 1383 | -10/Subcaves | Discovered new exit (range 20) 1665 | -10/Subcaves | A swath of the cavern ceiling suddenly collapsed 1815 | -10/Subcaves | Shifting Twisted Machinery released Battle Cannon 1816 | -10/Subcaves | Shifting Twisted Machinery released Sub. Power Source 1878 | -10/Subcaves | Build established: Scavenger-Mutant 2019 | -10/Subcaves | Disturbed a concealed Subdweller 2023 | -10/Subcaves | Core integrity fell below 50% 2241 | -10/Subcaves | Shifting Twisted Machinery released Barrage Gun 2241 | -10/Subcaves | Shifting Twisted Machinery released Battle Cannon 2330 | -10/Subcaves | Shifting Twisted Machinery released Sub. Beam Cannon 2342 | -10/Subcaves | Shifting Twisted Machinery released Sub. Optics 2548 | -10/Subcaves | Learned Materials terminal intel 2828 | -10/Subcaves | Build established: Mutant 3291 | -10/Subcaves | Disturbed a concealed Subdweller 3307 | -10/Subcaves | Disturbed a concealed Subdweller 3578 | -10/Subcaves | Discovered new exit (range 14) 3595 | -10/Subcaves | Core integrity fell below 20% 4590 | -10/Subcaves | Entered Recycling 5049 | -8/Recycling | Discovered new exit (range 14) 5496 | -8/Recycling | Scanned before Scraplab entrance 5520 | -8/Recycling | Entered Scraplab 5541 | -8/Recycling | Discovered new exit (range 4) 5555 | -8/Recycling | Entered Scraptown 5687 | -8/Scraptown | Heard Great Nut preacher, LISTEN AND RECITE! 5853 | -8/Scraptown | Discovered new exit (range 5) 5919 | -8/Scraptown | Visited Cyclists 5979 | -8/Scraptown | Visited Science Testing Area 6178 | -8/Scraptown | Visited UFD Registry 6178 | -8/Scraptown | Registered with UFD as "Flashspawn" 6194 | -8/Scraptown | Visited Red Mages 6217 | -8/Scraptown | Visited Assassins FH 6274 | -8/Scraptown | Visited Shadow of the Wyrm 6546 | -8/Scraptown | Entered Cyclist Reading Room 6613 | -8/Scraptown | Visited Junk Repository 6751 | -8/Scraptown | Visited Junk Repository 6804 | -8/Scraptown | Visited Curators Association 6847 | -8/Scraptown | Visited DA-N13 Charitable Foundation 6854 | -8/Scraptown | Found DCF Scrap (31 items) 7105 | -8/Scraptown | Visited Science Guys 7174 | -8/Scraptown | Visited Research Penetration Think Tank 7211 | -8/Scraptown | Visited Analyses Database 7281 | -8/Scraptown | Found Scrap Suit 7348 | -8/Scraptown | Discovered new exit (range 5) 7408 | -8/Scraptown | Visited Cartography Club 7454 | -8/Scraptown | Found Surveybot 17 Chip 7661 | -8/Scraptown | Learned location of Hub_04(d) (-6) 7661 | -8/Scraptown | Learned 8 Factory zone layouts 7661 | -8/Scraptown | Learned 12 Factory zone layouts 7661 | -8/Scraptown | Learned 4 Access zone layouts 7661 | -8/Scraptown | Learned 8 Lower Caves zone layouts 7661 | -8/Scraptown | Learned 4 Mines zone layouts 7661 | -8/Scraptown | Learned 24 Proximity Caves zone layouts 7661 | -8/Scraptown | Learned Materials emergency access door positions 7661 | -8/Scraptown | Learned 16 Upper Caves zone layouts 7661 | -8/Scraptown | Learned location of 2 exits from Upper Caves 7661 | -8/Scraptown | Learned location of 3 exits from Upper Caves 7661 | -8/Scraptown | Learned location of 1 exit from Proximity Caves 7684 | -8/Scraptown | Found Deep Structural Scanner 7797 | -8/Scraptown | Visited Derelict Rescue Squad 7815 | -8/Scraptown | Found DRS Beacon 7825 | -8/Scraptown | Found DRS Beacon 7858 | -8/Scraptown | Visited Scrap Suit Storage 7915 | -8/Scraptown | Visited Scrapoid Pod Storage 7925 | -8/Scraptown | Found Scrapoid Pod 8069 | -8/Scraptown | Met Optimus 8069 | -8/Scraptown | Accepted into 0bPrime 8176 | -8/Scraptown | Entered Factory 8176 | -6/Factory | Evolved 8 slots: Propulsion x2, Utility x6 8177 | -6/Factory | Identified exit to Factory 8179 | -6/Factory | Loaded intel: 4 garrison access locations 8324 | -6/Factory | Lost 5 parts (1p2n1u1w) 8362 | -6/Factory | Core integrity fell below 50% 8371 | -6/Factory | Core integrity fell below 20% 8415 | -6/Factory | Destroyed by G-50 Soldier with Heavy Laser Last Messages --------------- 08358_ G-67 Veteran suffers critical hit (Burn). 08359_ G-67 Veteran overheating. 08361_ Critical hit (Burn: +37). 08362_ G-67 Veteran suffers critical hit (Burn). 08362_ Field Laser melted. 08362_ Lgt. Antimatter Reactor melted. 08362_ Flexi-carbon Leg melted. 08362_ Adv. Heat Sink melted. 08362_ Flexi-carbon Leg melted. 08362_ Adv. Heat Sink melted. 08362_ G-67 Veteran destroyed. 08364_ Dropped Thermic Laser. 08365_ Slammed into G-50 Soldier. 08365_ Destabilizing: System interference. 08365_ Surveybot 17 Chip temporarily disabled. 08367_ Hacking Suite destroyed. 08367_ Critical hit (Burn: +37). 08397_ Slammed into R-10 Processor. 08402_ Connecting with Terminal... 08408_ W-25 Informer sends out distress signal. Map ----- +----------------------------------------------------+ | ?????????????????????????????????????????????????? | | ?????????????????????????????????????????????????? | | ??????????????? ???????????????????????????????? | | ??????????????? ???????????????????????????????? | | ??????????????? ???????????????????????????????? | | ??????????????? ???????????????????????????????? | | # #??# " # #??? | | # #??# " # """ #??? | | #+####### #??# " # """ #??? | | # #??# " # """ #??? | | + #??# " # #??? | | # #??# " #+########??? | | ######## ##########??# "Y" " # # #??? | | #??????# # #???# """ # # #??? | | #??????# # ###########+# # #??? | | #??????# # # # #??? | | #??????# # # + #??? | | #########??????# # + g # #??? | | ???????????????# # # ## #??? | | ???????????????# # # ## #??? | | ???????????????# # # " ## #??? | | ???????????????# # # " ## #??? | | ???????????????# ######### " ## #??? | | ?????????????### ###?????# " ## #??? | | ?????????????# ####### " ## #??? | | ?????????##### T @ " ## #??? | | ########?# "" " ####+####??? | | #?# ### " #??# #?????? | | ! #?# #?# ############ " #??# #?????? | | #?# #?########?????????# " #??# #?????? | | "" """ #?# #?# #?????????# "" #??# ####??? | | "" """?### ### #????????????G????#???????? | | "" """ # # #????????????""????????????### | | # # #????????????"???????????????? | | "" """ + # #????????????????????????????? | | "" """ # # ##???????????????????????????? | | "" """ # # ## ??????????????????????????? | | ?## ## ## ????????????????????????### | | "" """??# ## ## ???????????????????????? | | "" ""???# ## ## ""?????????????????????? "" | | "" ""???# ## ## """ ???????????????????? "" | | ? ????# ## ## ???????????????????? "" | | ????????# ## ## """????????????????????? | | ######??# #?? ?# """????????????????????? "" | | ?# #####+#### ""????#????????????????? "" | | ?# # ????# ???????????????? "" | | # ##+######! ??????????????? | | # # ??????????????? | | + # "?????????????# | | # """"""""" # "???????????? # | +----------------------------------------------------+ Best States ------------- Heat Dissipation 37 Energy Generation 15 Energy Capacity 250 Matter Stores 300 Matter Capacity 300 Sight Range 21 Terrain Scan Density 1210 Armor Coverage 800 Evasion (%) 55 Targeting Accuracy 5 Recoil Reduction 2 Offensive Hacking 10 Item Schematics ----------------- None Robot Schematics ------------------ None Fabricated ------------ Nothing Repaired ---------- Nothing Studied --------- None Alien Tech Used ----------------- None Achievements -------------- Bob, First Of His Name Civilization 2243 Link The Feds Physics Hates This One Trick Survival Of The Most Covered You May Approach The Wall Challenges ------------ None Game ------ Seed HardlightCarbideManipulator Manual? 0 Play Time 00:58:01 Cumulative 93.6 hours Start 2025.11.03 @ 16:48:48 End 2025.11.05 @ 11:52:19 Sessions 7 Manual Loads 0 Difficulty Rogue Special Mode None Game No. 85 Rogue 85 Adventurer 0 Explorer 0 Win Type - Total 1 Types 1/0/0/0/0/0/0/0/0/0 Lore% 53 Gallery% 57 Achievement% 37 Wizard Run 0 Options --------- Layout 1 ASCII 0 Keyboard 1 Movement Vi Keybinds 0 Fullscreen 1 Font 24/Terminus Map View 50x35 Zoom Use 0% Tactical HUD 1 Map Filters NONE Filters NONE Steam 1 RUN: d7253280-b82d-4741-b702-21a340b5bf7b